fUST/lending_fUST_20250422
["ID","MTS","AMOUNT","RATE_DAILY","PERIOD"]
[358629304,1745320242114,-500.0,0.00021917,2]
[358629305,1745320242123,-1851.23,0.00021917,2]
[358629306,1745320242133,-936.86,0.00021917,2]
[358629307,1745320242142,-500.0,0.00021917,2]
[358629308,1745320242152,-500.0,0.00021917,2]
[358629309,1745320242162,-500.0,0.00021917,2]
[358629310,1745320242172,-500.0,0.00021917,2]
[358629311,1745320242181,-500.0,0.00021917,2]
[358629312,1745320242191,-500.0,0.00021917,2]
[358629313,1745320242201,-500.0,0.00021917,2]
[358629314,1745320242211,-632.84,0.00021917,2]
[358629315,1745320242220,-500.0,0.00021917,2]
[358629316,1745320242230,-502.58821979,0.00021917,2]
[358629317,1745320242240,-500.0,0.00021917,2]
[358629318,1745320242250,-500.0,0.00021917,2]
[358629319,1745320242263,-495.89962436,0.00021917,2]
[358629320,1745320242272,-500.0,0.00021917,2]
[358629321,1745320242282,-500.0,0.00021917,2]
[358629322,1745320242291,-506.26261494,0.00021917,2]
[358629323,1745320242302,-506.65457999,0.00021917,2]
[358629324,1745320242311,-500.0,0.00021917,2]
[358629325,1745320242321,-500.0,0.00021917,2]
[358629326,1745320242330,-500.0,0.00021917,2]
[358629327,1745320242340,-797.08,0.00021917,2]
[358629328,1745320242350,-501.88088184,0.00021917,2]
[358629329,1745320242359,-500.0,0.00021917,2]
[358629330,1745320242368,-500.0,0.00021917,2]
[358629331,1745320242378,-500.0,0.00021917,2]
[358629332,1745320242387,-494.82033752,0.00021917,2]
[358629333,1745320242397,-500.0,0.00021917,2]
[358629334,1745320242407,-500.0,0.00021917,2]
[358629335,1745320242417,-500.0,0.00021917,2]
[358629337,1745320242426,-500.0,0.00021917,2]
[358629338,1745320242436,-2012.38,0.00021917,2]
[358629340,1745320242446,-500.0,0.00021917,2]
[358629341,1745320242455,-500.0,0.00021917,2]
[358629342,1745320242465,-501.11465319,0.00021917,2]
[358629343,1745320242475,-500.0,0.00021917,2]
[358629344,1745320242485,-500.0,0.00021917,2]
[358629345,1745320242499,-502.89055827,0.00021917,2]
[358629346,1745320242510,-500.0,0.00021917,2]
[358629347,1745320242520,-500.0,0.00021917,2]
[358629348,1745320242530,-1199.8,0.00021917,2]
[358629349,1745320242539,-633.17,0.00021917,2]
[358629350,1745320242549,-500.0,0.00021917,2]
[358629351,1745320242559,-500.0,0.00021917,2]
[358629352,1745320242572,-500.0,0.00021917,2]
[358629353,1745320242582,-500.0,0.00021917,2]
[358629354,1745320242592,-500.0,0.00021917,2]
[358629355,1745320242603,-500.0,0.00021917,2]
[358629356,1745320242613,-510.29906048,0.00021917,2]
[358629357,1745320242623,-500.0,0.00021917,2]
[358629358,1745320242633,-500.0,0.00021917,2]
[358629359,1745320242643,-501.08013338,0.00021917,2]
[358629360,1745320242654,-500.0,0.00021917,2]
[358629361,1745320242664,-500.0,0.00021917,2]
[358629362,1745320242674,-500.0,0.00021917,2]
[358629363,1745320242684,-4285.22,0.00021917,2]
[358629364,1745320242694,-500.0,0.00021917,2]
[358629365,1745320242704,-500.0,0.00021917,2]
[358629366,1745320242714,-500.0,0.00021917,2]
[358629367,1745320242724,-500.0,0.00021917,2]
[358629368,1745320242734,-500.0,0.00021917,2]
[358629369,1745320242745,-500.0,0.00021917,2]
[358629370,1745320242755,-500.37353793,0.00021917,2]
[358629371,1745320242766,-753.84,0.00021917,2]
[358629372,1745320242776,-500.0,0.00021917,2]
[358629373,1745320242786,-500.0,0.00021917,2]
[358629374,1745320242796,-500.0,0.00021917,2]
[358629375,1745320242805,-575.75777399,0.00021917,2]
[358629376,1745320242815,-500.0,0.00021917,2]
[358629377,1745320242825,-502.22130498,0.00021917,2]
[358629378,1745320242836,-504.83227008,0.00021917,2]
[358629379,1745320242846,-500.0,0.00021917,2]
[358629380,1745320242856,-500.0,0.00021917,2]
[358629381,1745320242865,-503.43116122,0.00021917,2]
[358629382,1745320242875,-500.0,0.00021917,2]
[358629383,1745320242885,-500.0,0.00021917,2]
[358629384,1745320242895,-264.05483498,0.00021917,2]
[358629385,1745320242905,-500.0,0.00021917,2]
[358629386,1745320242915,-591.89,0.00021917,2]
[358629387,1745320242925,-500.0,0.00021917,2]
[358629388,1745320242935,-500.0,0.00021917,2]
[358629389,1745320242945,-500.9550273,0.00021917,2]
[358629390,1745320242955,-500.24954441,0.00021917,2]
[358629391,1745320242965,-539.06370772,0.00021917,2]
[358629392,1745320242975,-500.0,0.00021917,2]
[358629393,1745320242985,-500.0,0.00021917,2]
[358629394,1745320242995,-500.0,0.00021917,2]
[358629395,1745320243005,-500.0,0.00021917,2]
[358629396,1745320243015,-500.0,0.00021917,2]
[358629397,1745320243024,-500.0,0.00021917,2]
[358629398,1745320243033,-187.308725,0.00021918,2]
[358629400,1745320243043,-166.0,0.00021918,2]
[358629402,1745320243052,-260.12531393,0.00021918,2]
[358629405,1745320243062,-151.0,0.00021918,2]
[358629407,1745320243073,-151.0,0.00021918,2]
[358629409,1745320243083,-151.0,0.00021918,2]
[358629410,1745320243093,-500.0,0.00021918,2]
[358629411,1745320243103,-151.0,0.00021918,2]
[358629412,1745320243113,-500.0,0.00021918,2]
[358629413,1745320243122,-9702.0,0.00022,2]
[358629414,1745320243134,-500.0,0.00022191,2]
[358629415,1745320243145,-500.0,0.00022191,2]
[358629417,1745320243155,-500.0,0.00022191,2]
[358629418,1745320243165,-500.0,0.00022191,2]
[358629419,1745320243176,-500.0,0.00022191,2]
[358629420,1745320243186,-500.0,0.00022191,2]
[358629421,1745320243198,-463.34664367,0.00022191,2]
[358629422,1745320243210,-696.94,0.00022191,2]
[358629423,1745320243220,-500.0,0.00022191,2]
[358629425,1745320243230,-500.0,0.00022191,2]
[358629426,1745320243241,-500.0,0.00022191,2]
[358629428,1745320243251,-500.0,0.00022191,2]
[358629429,1745320243261,-500.0,0.00022191,2]
[358629430,1745320243272,-500.0,0.00022191,2]
[358629431,1745320243282,-304.20680205,0.00022191,2]
[358629432,1745320243293,-743.52,0.00022191,2]
[358629433,1745320243303,-500.0,0.00022191,2]
[358629434,1745320243313,-500.0,0.00022191,2]
[358629435,1745320243324,-528.54,0.00022191,2]
[358629436,1745320243334,-507.93497376,0.00022191,2]
[358629437,1745320243344,-662.12,0.00022191,2]
[358629438,1745320243354,-500.0,0.00022191,2]
[358629439,1745320243366,-500.0,0.00022191,2]
[358629440,1745320243376,-500.0,0.00022191,2]
[358629441,1745320243386,-500.0,0.00022191,2]
[358629442,1745320243396,-500.0,0.00022191,2]
[358629443,1745320243406,-500.0,0.00022191,2]
[358629444,1745320243416,-500.0,0.00022191,2]
[358629445,1745320243426,-531.07,0.00022191,2]
[358629446,1745320243436,-500.0,0.00022191,2]
[358629447,1745320243446,-500.0,0.00022191,2]
[358629448,1745320243457,-608.2,0.00022191,2]
[358629450,1745320243467,-500.0,0.00022191,2]
[358629452,1745320243479,-777.38,0.00022191,2]
[358629454,1745320243489,-500.0,0.00022191,2]
[358629456,1745320243499,-500.0,0.00022191,2]
[358629458,1745320243508,-500.0,0.00022191,2]
[358629460,1745320243518,-500.0,0.00022191,2]
[358629462,1745320243528,-560.1365621,0.00022191,2]
[358629464,1745320243537,-738.84,0.00022191,2]
[358629466,1745320243547,-500.0,0.00022191,2]
[358629468,1745320243557,-500.0,0.00022191,2]
[358629470,1745320243571,-500.0,0.00022191,2]
[358629472,1745320243581,-500.0,0.00022191,2]
[358629474,1745320243592,-500.0,0.00022191,2]
[358629476,1745320243603,-500.0,0.00022191,2]
[358629478,1745320243614,-500.0,0.00022191,2]
[358629480,1745320243624,-500.0,0.00022191,2]
[358629482,1745320243634,-500.0,0.00022191,2]
[358629484,1745320243644,-500.0,0.00022191,2]
[358629486,1745320243654,-500.0,0.00022191,2]
[358629488,1745320243664,-500.0,0.00022191,2]
[358629490,1745320243674,-500.0,0.00022191,2]
[358629492,1745320243684,-500.0,0.00022191,2]
[358629494,1745320243694,-500.0,0.00022191,2]
[358629496,1745320243704,-714.48,0.00022191,2]
[358629498,1745320243714,-1155.95,0.00022191,2]
[358629500,1745320243724,-503.31382095,0.00022191,2]
[358629502,1745320243734,-500.0,0.00022191,2]
[358629504,1745320243744,-500.0,0.00022191,2]
[358629506,1745320243753,-500.0,0.00022191,2]
[358629508,1745320243763,-500.0,0.00022191,2]
[358629510,1745320243774,-500.0,0.00022191,2]
[358629512,1745320243784,-500.0,0.00022191,2]
[358629515,1745320243796,-500.0,0.00022191,2]
[358629517,1745320243807,-673.16,0.00022191,2]
[358629519,1745320243820,-500.0,0.00022191,2]
[358629520,1745320243831,-500.0,0.00022191,2]
[358629522,1745320243843,-500.0,0.00022191,2]
[358629524,1745320243853,-500.0,0.00022191,2]
[358629526,1745320243865,-510.65501489,0.00022191,2]
[358629528,1745320243874,-500.0,0.00022191,2]
[358629530,1745320243885,-500.0,0.00022191,2]
[358629532,1745320243895,-402.96631046,0.00022191,2]
[358629533,1745320243906,-236.84519714,0.00022191,2]
[358629534,1745320243916,-500.0,0.00022191,2]
[358629535,1745320243925,-500.0,0.00022191,2]
[358629536,1745320243935,-500.0,0.00022191,2]
[358629537,1745320243944,-1645.3,0.00022191,2]
[358629538,1745320243954,-500.0,0.00022191,2]
[358629539,1745320243964,-621.47,0.00022191,2]
[358629540,1745320243974,-528.23856941,0.00022191,2]
[358629541,1745320243984,-500.0,0.00022191,2]
[358629542,1745320243994,-500.0,0.00022191,2]
[358629543,1745320244004,-3373.02,0.00022191,2]
[358629544,1745320244014,-500.0,0.00022191,2]
[358629545,1745320244024,-500.0,0.00022191,2]
[358629546,1745320244034,-502.01,0.00022191,2]
[358629547,1745320244056,-500.0,0.00022191,2]
[358629548,1745320244069,-500.0,0.00022191,2]
[358629549,1745320244079,-500.0,0.00022191,2]
[358629550,1745320244090,-500.0,0.00022191,2]
[358629551,1745320244102,-3520.95,0.00022191,2]
[358629552,1745320244115,-500.0,0.00022191,2]
[358629553,1745320244125,-500.0,0.00022191,2]
[358629554,1745320244136,-500.0,0.00022191,2]
[358629555,1745320244146,-500.0,0.00022191,2]
[358629556,1745320244156,-500.0,0.00022191,2]
[358629557,1745320244166,-500.0,0.00022191,2]
[358629558,1745320244177,-500.0,0.00022191,2]
[358629559,1745320244187,-500.0,0.00022191,2]
[358629560,1745320244198,-641.02,0.00022191,2]
[358629561,1745320244209,-514.37271961,0.00022191,2]
[358629562,1745320244219,-500.0,0.00022191,2]
[358629563,1745320244230,-500.0,0.00022191,2]
[358629564,1745320244240,-260.82011822,0.00022191,2]
[358629565,1745320244250,-500.0,0.00022191,2]
[358629566,1745320244260,-539.74,0.00022191,2]
[358629567,1745320244270,-500.0,0.00022191,2]
[358629568,1745320244280,-500.0,0.00022191,2]
[358629569,1745320244290,-500.0,0.00022191,2]
[358629570,1745320244302,-11275.1,0.00022191,2]
[358629571,1745320244312,-677.42,0.00022191,2]
[358629572,1745320244322,-759.51,0.00022191,2]
[358629573,1745320244332,-500.0,0.00022191,2]
[358629574,1745320244344,-500.0,0.00022191,2]
[358629575,1745320244354,-500.0,0.00022191,2]
[358629576,1745320244363,-500.0,0.00022191,2]
[358629577,1745320244374,-500.0,0.00022191,2]
[358629578,1745320244384,-287.67397708,0.00022191,2]
[358629579,1745320244394,-500.0,0.00022191,2]
[358629580,1745320244404,-500.0,0.00022191,2]
[358629581,1745320244414,-500.0,0.00022191,2]
[358629582,1745320244424,-500.0,0.00022191,2]
[358629583,1745320244434,-500.0,0.00022191,2]
[358629584,1745320244444,-500.0,0.00022191,2]
[358629585,1745320244454,-500.0,0.00022191,2]
[358629586,1745320244464,-500.0,0.00022191,2]
[358629587,1745320244474,-500.0,0.00022191,2]
[358629588,1745320244486,-500.0,0.00022191,2]
[358629589,1745320244496,-502.71449283,0.00022191,2]
[358629590,1745320244507,-500.0,0.00022191,2]
[358629591,1745320244517,-500.0,0.00022191,2]
[358629592,1745320244527,-500.0,0.00022191,2]
[358629593,1745320244538,-500.0,0.00022191,2]
[358629594,1745320244548,-500.0,0.00022191,2]
[358629595,1745320244558,-277.99723843,0.00022191,2]
[358629596,1745320244571,-500.0,0.00022191,2]
[358629597,1745320244581,-500.0,0.00022191,2]
[358629598,1745320244591,-500.0,0.00022191,2]
[358629599,1745320244601,-500.0,0.00022191,2]
[358629600,1745320244612,-500.0,0.00022191,2]
[358629601,1745320244623,-500.0,0.00022191,2]
[358629602,1745320244633,-501.69938003,0.00022191,2]
[358629603,1745320244646,-500.0,0.00022191,2]
[358629604,1745320244656,-500.0,0.00022191,2]
[358629605,1745320244666,-515.05,0.00022191,2]
[358629606,1745320244681,-500.0,0.00022191,2]
[358629607,1745320244691,-500.0,0.00022191,2]
[358629608,1745320244701,-1819.9,0.00022191,2]
[358629609,1745320244712,-500.0,0.00022191,2]
[358629610,1745320244722,-500.0,0.00022191,2]
[358629611,1745320244733,-534.33,0.00022191,2]
[358629612,1745320244930,-500.0,0.00022191,2]
[358629613,1745320244941,-3290.51,0.00022191,2]
[358629614,1745320244951,-635.6,0.00022191,2]
[358629615,1745320244960,-6254.96,0.00022191,2]
[358629616,1745320244970,-500.0,0.00022191,2]
[358629617,1745320244979,-500.0,0.00022191,2]
[358629618,1745320244989,-500.0,0.00022191,2]
[358629619,1745320244999,-563.65,0.00022191,2]
[358629620,1745320245010,-500.0,0.00022191,2]
[358629621,1745320245022,-520.10718635,0.00022191,2]
[358629622,1745320245031,-500.0,0.00022191,2]
[358629623,1745320245041,-500.0,0.00022191,2]
[358629624,1745320245050,-500.0,0.00022191,2]
[358629625,1745320245060,-707.61,0.00022191,2]
[358629626,1745320245070,-500.0,0.00022191,2]
[358629627,1745320245081,-500.0,0.00022191,2]
[358629628,1745320245090,-500.0,0.00022191,2]
[358629629,1745320245100,-500.0,0.00022191,2]
[358629630,1745320245110,-500.0,0.00022191,2]
[358629631,1745320245120,-651.76,0.00022191,2]
[358629632,1745320245129,-500.0,0.00022191,2]
[358629633,1745320245139,-500.0,0.00022191,2]
[358629634,1745320245149,-500.0,0.00022191,2]
[358629635,1745320245159,-1851.23,0.00022191,2]
[358629636,1745320245172,-936.86,0.00022191,2]
[358629637,1745320245192,-500.0,0.00022191,2]
[358629638,1745320245203,-500.0,0.00022191,2]
[358629639,1745320245213,-500.0,0.00022191,2]
[358629640,1745320245223,-500.0,0.00022191,2]
[358629641,1745320245233,-500.0,0.00022191,2]
[358629642,1745320245244,-632.84,0.00022191,2]
[358629643,1745320245254,-500.0,0.00022191,2]
[358629644,1745320245266,-500.0,0.00022191,2]
[358629645,1745320245276,-500.0,0.00022191,2]
[358629646,1745320245286,-500.0,0.00022191,2]
[358629647,1745320245296,-797.08,0.00022191,2]
[358629649,1745320245306,-500.0,0.00022191,2]
[358629650,1745320245315,-500.0,0.00022191,2]
[358629651,1745320245325,-2012.38,0.00022191,2]
[358629652,1745320245335,-500.0,0.00022191,2]
[358629653,1745320245345,-500.0,0.00022191,2]
[358629654,1745320245354,-500.0,0.00022191,2]
[358629656,1745320245364,-1199.8,0.00022191,2]
[358629657,1745320245374,-633.17,0.00022191,2]
[358629658,1745320245384,-500.0,0.00022191,2]
[358629659,1745320245394,-568.27800806,0.00022191,2]
[358629660,1745320245404,-500.0,0.00022191,2]
[358629661,1745320245414,-500.0,0.00022191,2]
[358629662,1745320245424,-500.0,0.00022191,2]
[358629663,1745320245434,-500.0,0.00022191,2]
[358629664,1745320245444,-506.66075598,0.00022191,2]
[358629665,1745320245454,-500.0,0.00022191,2]
[358629667,1745320245464,-4285.22,0.00022191,2]
[358629669,1745320245473,-500.0,0.00022191,2]
[358629671,1745320245483,-500.0,0.00022191,2]
[358629673,1745320245493,-753.84,0.00022191,2]
[358629675,1745320245504,-500.0,0.00022191,2]
[358629677,1745320245514,-515.51396382,0.00022191,2]
[358629679,1745320245525,-500.0,0.00022191,2]
[358629681,1745320245534,-500.0,0.00022191,2]
[358629683,1745320245544,-519.34569193,0.00022191,2]
[358629684,1745320245554,-591.89,0.00022191,2]
[358629686,1745320245566,-500.0,0.00022191,2]
[358629687,1745320245576,-500.0,0.00022191,2]
[358629688,1745320245586,-500.0,0.00022191,2]
[358629690,1745320245596,-500.0,0.00022465,2]
[358629692,1745320245606,-342.99934062,0.00022465,2]
[358629693,1745320245615,-500.0,0.00022465,2]
[358629694,1745320245625,-500.0,0.00022465,2]
[358629696,1745320245634,-500.0,0.00022465,2]
[358629698,1745320245645,-500.0,0.00022465,2]
[358629700,1745320245656,-696.94,0.00022465,2]
[358629701,1745320245665,-500.0,0.00022465,2]
[358629702,1745320245675,-500.0,0.00022465,2]
[358629704,1745320245685,-500.0,0.00022465,2]
[358629706,1745320245694,-500.0,0.00022465,2]
[358629707,1745320245704,-500.0,0.00022465,2]
[358629708,1745320245713,-500.0,0.00022465,2]
[358629709,1745320245722,-743.52,0.00022465,2]
[358629710,1745320245733,-500.0,0.00022465,2]
[358629711,1745320245742,-500.0,0.00022465,2]
[358629712,1745320245751,-662.12,0.00022465,2]
[358629713,1745320245761,-500.0,0.00022465,2]
[358629714,1745320245770,-500.0,0.00022465,2]
[358629715,1745320245783,-500.0,0.00022465,2]
[358629717,1745320245793,-500.0,0.00022465,2]
[358629719,1745320245803,-500.0,0.00022465,2]
[358629721,1745320245813,-500.0,0.00022465,2]
[358629722,1745320245824,-531.07,0.00022465,2]
[358629723,1745320245834,-500.0,0.00022465,2]
[358629724,1745320245844,-500.0,0.00022465,2]
[358629727,1745320245854,-608.2,0.00022465,2]
[358629729,1745320245863,-500.0,0.00022465,2]
[358629730,1745320245872,-777.38,0.00022465,2]
[358629732,1745320245882,-500.0,0.00022465,2]
[358629734,1745320245892,-500.0,0.00022465,2]
[358629736,1745320245902,-500.0,0.00022465,2]
[358629739,1745320245912,-500.0,0.00022465,2]
[358629740,1745320245921,-738.84,0.00022465,2]
[358629742,1745320245930,-500.0,0.00022465,2]
[358629744,1745320245940,-500.0,0.00022465,2]
[358629746,1745320245951,-500.0,0.00022465,2]
[358629749,1745320245960,-500.0,0.00022465,2]
[358629751,1745320245970,-500.0,0.00022465,2]
[358629752,1745320245979,-500.0,0.00022465,2]
[358629754,1745320245989,-500.0,0.00022465,2]
[358629757,1745320245999,-500.0,0.00022465,2]
[358629759,1745320246009,-500.0,0.00022465,2]
[358629761,1745320246018,-500.0,0.00022465,2]
[358629763,1745320246028,-714.48,0.00022465,2]
[358629765,1745320246038,-1155.95,0.00022465,2]
[358629766,1745320246047,-500.0,0.00022465,2]
[358629768,1745320246057,-500.0,0.00022465,2]
[358629770,1745320246067,-500.0,0.00022465,2]
[358629772,1745320246078,-500.0,0.00022465,2]
[358629774,1745320246087,-673.16,0.00022465,2]
[358629776,1745320246097,-500.0,0.00022465,2]
[358629778,1745320246106,-500.0,0.00022465,2]
[358629780,1745320246116,-500.0,0.00022465,2]
[358629782,1745320246125,-500.0,0.00022465,2]
[358629784,1745320246134,-500.0,0.00022465,2]
[358629786,1745320246144,-500.0,0.00022465,2]
[358629788,1745320246154,-228.29434969,0.00022465,2]
[358629790,1745320246164,-1645.3,0.00022465,2]
[358629792,1745320246174,-621.47,0.00022465,2]
[358629794,1745320246183,-500.0,0.00022465,2]
[358629796,1745320246194,-500.0,0.00022465,2]
[358629797,1745320246204,-3373.02,0.00022465,2]
[358629799,1745320246215,-500.0,0.00022465,2]
[358629801,1745320246225,-500.0,0.00022465,2]
[358629803,1745320246236,-502.01,0.00022465,2]
[358629805,1745320246246,-500.0,0.00022465,2]
[358629807,1745320246256,-500.0,0.00022465,2]
[358629809,1745320246266,-500.0,0.00022465,2]
[358629811,1745320246277,-500.0,0.00022465,2]
[358629813,1745320246287,-3520.95,0.00022465,2]
[358629815,1745320246297,-180.49716584,0.00022465,2]
[358629817,1745320246307,-500.0,0.00022465,2]
[358629819,1745320246317,-500.0,0.00022465,2]
[358629821,1745320246327,-500.0,0.00022465,2]
[358629823,1745320246337,-500.0,0.00022465,2]
[358629825,1745320246348,-500.0,0.00022465,2]
[358629827,1745320246358,-500.0,0.00022465,2]
[358629829,1745320246368,-500.0,0.00022465,2]
[358629831,1745320246378,-641.02,0.00022465,2]
[358629833,1745320246388,-500.0,0.00022465,2]
[358629835,1745320246397,-500.0,0.00022465,2]
[358629837,1745320246406,-539.74,0.00022465,2]
[358629839,1745320246416,-500.0,0.00022465,2]
[358629841,1745320246426,-500.0,0.00022465,2]
[358629843,1745320246435,-500.0,0.00022465,2]
[358629845,1745320246445,-11275.1,0.00022465,2]
[358629847,1745320246454,-677.42,0.00022465,2]
[358629849,1745320246463,-759.51,0.00022465,2]
[358629851,1745320246473,-500.0,0.00022465,2]
[358629852,1745320246483,-500.0,0.00022465,2]
[358629854,1745320246493,-500.0,0.00022465,2]
[358629856,1745320246502,-500.0,0.00022465,2]
[358629858,1745320246512,-500.0,0.00022465,2]
[358629860,1745320246521,-500.0,0.00022465,2]
[358629862,1745320246530,-500.0,0.00022465,2]
[358629864,1745320246539,-500.0,0.00022465,2]
[358629866,1745320246550,-500.0,0.00022465,2]
[358629867,1745320246560,-500.0,0.00022465,2]
[358629869,1745320246573,-500.0,0.00022465,2]
[358629871,1745320246584,-500.0,0.00022465,2]
[358629873,1745320246595,-500.0,0.00022465,2]
[358629875,1745320246604,-500.0,0.00022465,2]
[358629877,1745320246614,-500.0,0.00022465,2]
[358629879,1745320246624,-500.0,0.00022465,2]
[358629881,1745320246635,-500.0,0.00022465,2]
[358629883,1745320246645,-500.0,0.00022465,2]
[358629885,1745320246655,-500.0,0.00022465,2]
[358629887,1745320246665,-500.0,0.00022465,2]
[358629889,1745320246675,-515.05,0.00022465,2]
[358629891,1745320246684,-500.0,0.00022465,2]
[358629893,1745320246694,-500.0,0.00022465,2]
[358629895,1745320246703,-1819.9,0.00022465,2]
[358629897,1745320246713,-500.0,0.00022465,2]
[358629899,1745320246722,-500.0,0.00022465,2]
[358629901,1745320246732,-534.33,0.00022465,2]
[358629903,1745320246742,-500.0,0.00022465,2]
[358629905,1745320246751,-3290.51,0.00022465,2]
[358629906,1745320246760,-635.6,0.00022465,2]
[358629908,1745320246770,-6254.96,0.00022465,2]
[358629910,1745320246780,-500.0,0.00022465,2]
[358629912,1745320246790,-500.0,0.00022465,2]
[358629914,1745320246800,-501.31819858,0.00022465,2]
[358629916,1745320246809,-563.65,0.00022465,2]
[358629918,1745320246819,-500.0,0.00022465,2]
[358629920,1745320246828,-707.61,0.00022465,2]
[358629922,1745320246840,-500.0,0.00022465,2]
[358629924,1745320246849,-500.0,0.00022465,2]
[358629926,1745320246858,-500.0,0.00022465,2]
[358629928,1745320246868,-500.0,0.00022465,2]
[358629930,1745320246878,-651.76,0.00022465,2]
[358629932,1745320246888,-500.0,0.00022465,2]
[358629934,1745320246898,-515.49691352,0.00022465,2]
[358629936,1745320246907,-1851.23,0.00022465,2]
[358629938,1745320246917,-936.86,0.00022465,2]
[358629940,1745320246927,-500.0,0.00022465,2]
[358629942,1745320246937,-505.82877217,0.00022465,2]
[358629944,1745320246947,-500.0,0.00022465,2]
[358629946,1745320246957,-632.84,0.00022465,2]
[358629948,1745320246966,-500.0,0.00022465,2]
[358629949,1745320246976,-500.0,0.00022465,2]
[358629951,1745320246986,-500.0,0.00022465,2]
[358629953,1745320246996,-500.0,0.00022465,2]
[358629955,1745320247006,-797.08,0.00022465,2]
[358629957,1745320247016,-500.0,0.00022465,2]
[358629960,1745320247027,-2012.38,0.00022465,2]
[358629961,1745320247037,-509.00604722,0.00022465,2]
[358629963,1745320247047,-500.0,0.00022465,2]
[358629965,1745320247057,-500.0,0.00022465,2]
[358629967,1745320247067,-1199.8,0.00022465,2]
[358629969,1745320247076,-633.17,0.00022465,2]
[358629971,1745320247086,-500.0,0.00022465,2]
[358629973,1745320247097,-500.0,0.00022465,2]
[358629975,1745320247106,-500.0,0.00022465,2]
[358629977,1745320247116,-626.44,0.00022465,2]
[358629979,1745320247125,-500.0,0.00022465,2]
[358629981,1745320247135,-500.0,0.00022465,2]
[358629983,1745320247145,-4285.22,0.00022465,2]
[358629985,1745320247154,-500.0,0.00022465,2]
[358629987,1745320247163,-753.84,0.00022465,2]
[358629989,1745320247172,-500.0,0.00022465,2]
[358629991,1745320247182,-591.89,0.00022465,2]
[358629992,1745320247191,-504.48898215,0.00022465,2]
[358629993,1745320247201,-500.0,0.00022465,2]
[358629994,1745320247211,-500.0,0.00022465,2]
[358629995,1745320247221,-224.51952508,0.00022466,2]
[358629996,1745320247230,-500.0,0.00022466,2]
[358629997,1745320247240,-500.0,0.00022466,2]
[358629998,1745320247249,-500.0,0.00022521,2]
[358629999,1745320247258,-500.0,0.00022521,2]
[358630000,1745320247269,-500.0,0.00022521,2]
[358630001,1745320247278,-500.0,0.00022521,2]
[358630002,1745320247288,-500.0,0.00022521,2]
[358630003,1745320247297,-500.0,0.00022521,2]
[358630004,1745320247307,-500.0,0.0002253,2]
[358630005,1745320247316,-300.0,0.0002253,2]
[358630006,1745320247326,-500.0,0.0002253,2]
[358630007,1745320247336,-500.0,0.00022539,2]
[358630008,1745320247347,-500.0,0.00022539,2]
[358630009,1745320247357,-500.0,0.00022539,2]